bitfinex-derivatives/quotes_ETHF0:USTF0_20251031
["timestamp","ask_amount","ask_price","bid_price","bid_amount"]
[1761943683990,0.63173252,3882.8,3882.7,0.69524]
[1761943684786,0.63173252,3882.8,3882.7,0.2314]
[1761943686194,0.63173252,3882.8,3882.7,0.69524]
[1761943686894,0.63173252,3882.8,3882.7,0.2314]
[1761943687094,0.63173252,3882.8,3882.7,0.69524]
[1761943687597,0.55116847,3882.8,3882.7,0.2314]
[1761943689492,0.55116847,3882.8,3882.7,0.69524]
[1761943689990,12.1828,3883.4,3882.7,0.2314]
[1761943690192,0.63067729,3883.3,3882.7,0.2314]
[1761943690391,0.63067729,3883.2,3882.7,0.2314]
[1761943690591,0.63067729,3883.1,3882.7,0.2314]
[1761943690786,0.2182,3882.8,3882.5,0.1363]
[1761943693301,3.3392,3883.0,3882.7,0.2318]
[1761943693595,0.6302407,3882.9,3882.8,0.2318]
[1761943693795,0.54967826,3882.9,3882.8,0.2318]
[1761943693996,0.77087826,3882.9,3882.8,0.2318]
[1761943698201,0.54967826,3882.9,3882.8,0.2318]
[1761943699194,0.2335,3882.6,3882.2,0.4639]
[1761943699398,0.2335,3882.6,3882.1,3.2078]
[1761943699900,0.2335,3882.2,3882.1,3.2078]
[1761943700702,0.2335,3882.2,3881.7,0.46396]
[1761943700899,0.783361,3882.2,3881.7,0.46396]
[1761943701207,0.2335,3882.2,3881.7,0.46396]
[1761943701905,0.2335,3882.2,3881.6,3.2078]
[1761943702210,0.2335,3881.7,3881.6,3.67177]
[1761943703006,0.2335,3881.7,3881.6,3.90137]
[1761943703204,0.1315,3882.0,3881.7,0.46395]
[1761943704209,0.55043639,3881.9,3881.7,0.46395]
[1761943704501,3.2078,3882.3,3881.7,0.46395]
[1761943704698,0.6310207,3882.2,3881.7,0.46395]
[1761943704897,0.6310207,3882.1,3881.7,0.46395]
[1761943705098,0.6310207,3882.0,3881.7,0.46395]
[1761943705299,0.55044228,3881.9,3881.7,0.46395]
[1761943705609,3.2078,3882.3,3881.8,0.46395]
[1761943705805,0.2335,3882.0,3881.6,3.2078]
[1761943706105,0.2335,3882.0,3881.9,0.46393]
[1761943706300,0.86511522,3882.0,3881.9,0.46393]
[1761943706500,0.86511522,3882.0,3881.9,0.69353]
[1761943706699,0.63161522,3882.0,3881.9,0.69353]
[1761943707905,0.63161522,3882.0,3881.9,0.2296]
[1761943709401,0.86511522,3882.0,3881.9,0.2296]
[1761943709601,0.93421522,3882.0,3881.6,3.67176]
[1761943709802,0.2335,3881.8,3881.7,0.46396]
[1761943710006,0.78453979,3881.8,3881.7,0.46396]
[1761943710300,0.2335,3881.7,3881.6,3.67177]
[1761943711910,0.2335,3881.7,3881.6,3.90137]
[1761943712907,0.0691,3882.0,3881.8,0.46395]
[1761943713109,0.86566472,3881.9,3881.8,0.46395]
[1761943713304,0.86566472,3881.9,3881.6,3.67176]
[1761943713501,0.55158631,3881.8,3881.7,0.69356]
[1761943715307,0.55158631,3881.8,3881.7,0.2296]
[1761943715505,0.86566474,3881.8,3881.5,0.1363]
[1761943715705,1.4981483,3882.5,3881.4,0.00268856]
[1761943715706,0.2335,3881.5,3881.4,0.00268856]
[1761943715908,0.99879151,3881.5,3881.4,0.00268856]
[1761943717813,0.63209151,3881.5,3881.4,0.69628856]
[1761943718810,0.55150613,3881.5,3881.4,0.69628856]
[1761943722511,3.2078,3882.3,3881.6,0.46397]
[1761943722718,0.63178982,3882.2,3881.6,0.46397]
[1761943723012,0.63178982,3882.2,3881.5,0.1368]
[1761943723013,0.3498,3881.5,3881.4,0.00268856]
[1761943723213,0.43038256,3881.5,3881.4,0.00268856]
[1761943723410,0.08058256,3881.5,3881.4,0.22248856]
[1761943723607,0.63179015,3881.5,3881.4,0.22248856]
[1761943724415,0.63179015,3881.5,3881.4,0.68648856]
[1761943726121,0.63179015,3881.5,3881.4,0.22248856]
[1761943726521,0.1355,3882.5,3881.4,0.00268856]
[1761943726734,0.1355,3882.5,3881.9,3.2078]
[1761943727023,0.1355,3882.5,3881.4,1.38151803]
[1761943727024,0.2143,3881.7,3881.6,0.46397]
[1761943728318,0.2143,3881.7,3881.6,0.68377]
[1761943728517,0.1355,3882.0,3881.7,0.46395]
[1761943728823,0.1355,3882.0,3881.6,0.46397]
[1761943729024,0.1355,3882.0,3881.8,0.46395]
[1761943730021,0.1355,3882.0,3881.9,0.2198]
[1761943730226,0.1355,3882.0,3881.9,0.68374]
[1761943730422,0.1355,3882.5,3882.4,0.2198]
[1761943730619,0.1355,3882.5,3881.8,3.2078]
[1761943730818,0.1355,3882.5,3882.1,0.46391]
[1761943731221,0.1355,3882.5,3882.2,0.4639]
[1761943732024,0.1355,3882.5,3882.4,0.2198]
[1761943732624,0.3498,3882.5,3882.4,0.2198]
[1761943732825,0.3498,3882.5,3882.1,0.46391]
[1761943733527,0.2143,3882.3,3882.2,0.4639]
[1761943733729,0.1355,3882.5,3882.2,0.6837]
[1761943733927,0.2143,3882.3,3881.8,3.2078]
[1761943734128,0.2143,3882.3,3882.1,0.46391]
[1761943734328,0.2143,3882.3,3882.2,0.4639]
[1761943735229,0.2143,3882.3,3882.0,0.46391]
[1761943735430,0.1355,3882.0,3881.9,0.68374]
[1761943739330,0.2143,3881.9,3881.8,3.2078]
[1761943739525,0.2143,3881.9,3881.8,3.67175]
[1761943740134,0.2143,3881.9,3881.8,3.89155]
[1761943740730,0.2143,3881.9,3881.8,0.68375]
[1761943741424,0.2143,3881.9,3881.8,0.2198]
[1761943741630,0.3498,3881.5,3881.4,3.21048856]
[1761943742135,0.3498,3881.5,3881.4,3.67448856]
[1761943742637,0.3498,3881.5,3881.4,3.21048856]
[1761943742835,0.3498,3881.5,3881.4,3.67448856]
[1761943743429,0.3498,3881.5,3881.4,3.21048856]
[1761943743635,0.3498,3881.5,3881.4,3.67448856]
[1761943744228,0.3498,3881.5,3881.4,0.46668856]
[1761943744830,0.3498,3881.5,3881.4,0.00268856]
[1761943745031,0.1355,3881.5,3881.4,0.22248856]
[1761943745240,0.1355,3881.5,3881.4,0.68648856]
[1761943745734,0.3498,3881.5,3881.4,0.68648856]
[1761943745933,0.1355,3882.0,3881.4,0.00268856]
[1761943746245,0.080582,3881.9,3881.6,0.68377]
[1761943746428,0.080582,3881.8,3881.6,0.68377]
[1761943746733,0.1355,3882.0,3881.6,0.68377]
[1761943746933,0.08057902,3881.9,3881.6,0.68377]
[1761943747134,0.08057902,3881.8,3881.6,0.68377]
[1761943747327,0.1355,3882.0,3881.6,0.68377]
[1761943747533,0.08057872,3881.9,3881.6,0.68377]
[1761943747739,0.08057872,3881.8,3881.6,0.68377]
[1761943747933,0.1355,3882.0,3881.6,0.68377]
[1761943748132,0.08057896,3881.9,3881.6,0.2198]
[1761943748328,0.1355,3882.0,3881.9,0.2198]
[1761943748531,0.21607863,3882.0,3881.9,0.2198]
[1761943750838,0.43037863,3882.0,3881.6,0.46397]
[1761943751134,0.08057863,3881.9,3881.6,0.46397]
[1761943751338,0.08057863,3881.8,3881.7,0.2147]
[1761943751539,0.08057863,3881.8,3881.7,0.67866]
[1761943751736,0.08057863,3881.8,3881.7,0.2147]
[1761943751934,0.3548,3881.5,3881.4,3.21048856]
[1761943754531,0.9092386,3881.5,3881.4,3.21048856]
[1761943754732,0.98982238,3881.5,3881.4,3.21048856]
[1761943757248,0.2156,3881.1,3881.0,3.104019]
[1761943757442,0.1392,3880.5,3880.2,0.2147]
[1761943757642,0.1392,3880.5,3880.3,3.67192]
[1761943757843,0.1392,3880.5,3880.4,0.2147]
[1761943758041,0.1392,3881.0,3880.4,0.2147]
[1761943758242,0.14162558,3881.0,3880.9,0.215]
[1761943758445,0.45382523,3881.0,3880.5,0.46409]
[1761943758636,0.63433894,3880.9,3880.4,0.00270432]
[1761943758946,0.1397,3880.5,3880.4,0.46681432]
[1761943759447,0.14162558,3881.0,3880.6,0.46409]
[1761943759749,0.1397,3880.5,3880.4,0.00270432]
[1761943760048,0.3713,3880.5,3880.4,0.00270432]
[1761943775750,0.45191082,3880.5,3880.4,0.00270432]
[1761943775953,1.00521422,3880.5,3880.4,0.00270432]
[1761943778061,4.21301422,3880.5,3880.4,0.00270432]
[1761943778262,0.1397,3880.0,3879.5,3.2078]
[1761943778459,0.2316,3879.6,3879.5,3.2078]
[1761943778850,0.2316,3879.6,3879.5,3.67202]
[1761943779360,0.2316,3879.6,3879.5,3.6739246]
[1761943779954,0.2316,3879.6,3879.5,3.2097046]
[1761943786660,0.78567576,3879.6,3879.5,3.2097046]
[1761943788864,0.55407576,3879.6,3879.5,3.8877246]
[1761943789058,0.1397,3880.0,3879.9,0.2138]
[1761943789260,0.22032015,3880.0,3879.9,0.2138]
[1761943789760,0.43652015,3880.0,3879.9,0.2138]
[1761943789958,0.99066092,3880.0,3879.9,0.2138]
[1761943790367,0.99066092,3880.0,3879.5,3.2097046]
[1761943790566,0.63476092,3879.9,3879.5,3.6739246]
[1761943790767,0.63476092,3879.8,3879.5,3.6739246]
[1761943790969,0.55414077,3879.7,3879.6,0.2138]
[1761943792672,0.77034077,3879.7,3879.6,0.2138]
[1761943792868,0.77034077,3879.7,3879.5,3.2097046]
[1761943793062,0.55414077,3879.6,3879.5,3.2097046]
[1761943793761,0.55414077,3879.9,3879.5,3.4235046]
[1761943793960,0.0806216,3879.8,3879.5,3.4235046]
[1761943794273,0.55414077,3879.7,3879.6,0.2138]
[1761943794868,0.55414077,3879.9,3879.6,0.2138]
[1761943795069,0.0806216,3879.8,3879.6,0.2138]
[1761943795269,0.55414077,3879.7,3879.6,0.2138]
[1761943795471,0.55414077,3879.9,3879.6,0.2138]
[1761943795769,0.1397,3880.0,3879.6,0.2138]
[1761943795770,0.63476129,3879.8,3879.6,0.2138]
[1761943795972,0.55414077,3879.7,3879.6,0.2138]
[1761943796573,0.55414077,3879.9,3879.6,0.2138]
[1761943796774,0.08062052,3879.8,3879.6,0.2138]
[1761943796968,0.77034077,3879.7,3879.6,0.2138]
[1761943797273,0.77034077,3879.7,3879.5,3.2097046]
[1761943797472,0.55414077,3879.6,3879.5,3.4235046]
[1761943797660,0.1397,3880.0,3879.5,3.4235046]
[1761943797661,0.55414077,3879.9,3879.5,3.4235046]
[1761943797865,0.08062052,3879.8,3879.5,3.4235046]
[1761943798168,0.2162,3879.6,3879.5,3.2097046]
[1761943798364,0.77034077,3879.6,3879.5,3.2097046]
[1761943800873,0.55414077,3879.6,3879.5,3.9300246]
[1761943801171,3.3475,3880.5,3879.8,0.2138]
[1761943801172,4.7142483,3880.5,3879.8,0.2138]
[1761943801372,0.133,3880.0,3879.8,0.2138]
[1761943801572,0.133,3880.0,3879.9,0.2138]
[1761943801778,0.63576829,3880.0,3879.9,0.2138]
[1761943802276,0.63576829,3880.0,3879.9,3.4216]
[1761943802777,0.76876829,3880.0,3879.9,3.4216]
[1761943802962,0.76876829,3880.0,3879.9,0.2138]
[1761943805376,0.98496829,3880.0,3879.7,0.4642]
[1761943805576,0.63576829,3879.9,3879.5,3.2097046]
[1761943805772,0.2162,3879.6,3879.5,3.2097046]
[1761943805973,0.85196829,3879.6,3879.5,3.2097046]
[1761943806373,0.85196829,3879.6,3879.5,3.8877246]
[1761943806880,0.85196829,3879.6,3879.5,3.4235046]
[1761943807279,0.2162,3879.2,3879.1,1.37882947]
[1761943807483,0.2162,3878.6,3877.9,3.2078]
[1761943807782,0.133,3879.0,3877.9,3.2078]
[1761943807783,0.3492,3878.0,3877.9,3.2078]
[1761943807971,0.98496829,3878.0,3877.9,3.2078]
[1761943808173,0.98496829,3878.0,3877.1,9.4285]
[1761943808174,0.90434962,3878.0,3877.4,3.2078]
[1761943808384,0.133,3877.5,3877.4,3.42386594]
[1761943809584,0.3492,3877.5,3877.4,3.42386594]
[1761943810483,0.133,3877.5,3877.4,3.42386594]
[1761943810678,0.13533079,3878.0,3877.4,3.42386594]
[1761943810873,0.56441277,3877.9,3877.4,3.42386594]
[1761943811075,0.13533079,3878.0,3877.4,3.42386594]
[1761943812584,0.1289,3877.5,3877.4,3.42386594]
[1761943812976,0.13533079,3878.0,3877.4,3.88833594]
[1761943813178,0.00233079,3878.0,3877.9,0.2287]
[1761943813484,0.00233079,3878.0,3877.9,3.4365]
[1761943813685,0.133,3879.0,3878.0,0.0689]
[1761943813885,0.133,3879.0,3878.4,3.2078]
[1761943814789,0.13561393,3879.0,3878.4,3.2078]
[1761943815790,0.13561393,3879.0,3878.9,0.2287]
[1761943816674,0.35591393,3879.0,3878.9,0.2287]
[1761943817385,0.00261393,3879.0,3878.9,0.2287]
[1761943817780,0.13151393,3879.0,3878.9,0.2287]
[1761943818984,0.3554,3878.5,3878.4,3.2078]
[1761943819184,0.2257,3878.1,3878.0,3.2078]
[1761943819390,0.1297,3878.0,3877.6,3.2078]
[1761943819979,0.3554,3877.5,3877.4,0.00226594]
[1761943820381,0.1297,3878.0,3877.4,0.22676594]
[1761943820586,0.56362453,3877.9,3877.4,0.22676594]
[1761943820886,0.56362453,3877.8,3877.7,0.2245]
[1761943821489,0.1297,3877.5,3877.4,0.22676594]
[1761943822291,0.1297,3878.5,3878.1,0.2245]
[1761943822492,0.1297,3878.5,3877.5,0.0689]
[1761943822691,0.5632605,3878.4,3877.4,0.00226594]
[1761943822892,0.5632605,3878.3,3877.5,0.46446]
[1761943823101,0.1297,3878.5,3877.8,3.2078]
[1761943823292,0.57846908,3878.4,3877.6,0.46445]
[1761943823496,0.57846908,3878.3,3877.6,0.46445]
[1761943823695,0.35792898,3878.0,3877.9,0.2245]
[1761943825498,0.35792898,3878.0,3877.5,0.46446]
[1761943825499,0.58362898,3878.0,3877.5,0.46446]
[1761943826605,0.22822898,3877.8,3877.5,0.46446]
[1761943826901,0.22822898,3877.8,3877.7,0.2245]
[1761943827706,0.22822898,3877.8,3877.7,0.68894]
[1761943828005,0.22822898,3877.8,3877.7,0.2245]
[1761943828396,0.22822898,3877.8,3877.4,3.67453594]
[1761943828596,0.1297,3878.0,3877.6,0.46071102]
[1761943828901,0.1297,3878.0,3877.4,3.21006594]
[1761943829096,0.1297,3878.0,3877.4,3.67453594]
[1761943829298,0.1297,3877.5,3877.4,3.30136594]
[1761943829698,0.3554,3877.5,3877.4,0.00226594]
[1761943830299,0.55930197,3877.5,3877.4,0.00226594]
[1761943830598,0.3554,3877.5,3877.4,0.00226594]
[1761943831396,0.93402902,3877.5,3877.4,0.00226594]
[1761943832098,0.93402902,3877.5,3876.6,3.2078]
[1761943832099,0.2257,3876.7,3876.6,3.2078]
[1761943833106,0.2257,3876.7,3876.6,3.21090028]
[1761943833607,0.1297,3877.0,3876.6,3.21090028]
[1761943833608,0.1297,3877.0,3876.6,3.30450028]
[1761943834106,0.2257,3876.7,3876.6,3.21090028]
[1761943834500,0.2257,3876.7,3876.6,0.00310028]
[1761943835210,0.88562684,3876.7,3876.6,0.00310028]
[1761943836898,0.88562684,3876.7,3876.6,2.8e-07]
[1761943837098,0.3554,3876.5,3875.8,3.2078]
[1761943837301,0.2257,3874.3,3874.2,3.2078]
[1761943837498,0.1297,3874.5,3873.8,3.2078]
[1761943837711,0.1297,3874.5,3874.1,0.46486]
[1761943837912,0.1297,3874.5,3873.9,0.46489]
[1761943838207,0.00192054,3874.5,3874.4,3.4323]
[1761943839306,0.00192054,3874.5,3874.4,3.2078]
[1761943839607,0.3554,3874.0,3873.9,0.00232742]
[1761943839811,0.3554,3874.0,3872.3,3.2078]
[1761943839812,0.2257,3872.8,3872.3,3.2078]
[1761943840008,0.3554,3872.0,3871.0,0.106]
[1761943840203,0.3554,3872.0,3871.0,0.31715538]
[1761943840404,0.2257,3872.0,3871.2,3.2078]
[1761943840702,3.4335,3872.0,3871.9,0.2335]
[1761943840903,3.4335,3872.0,3871.8,0.1345]
[1761943840904,3.2078,3872.6,3872.5,0.2335]
[1761943841208,3.2078,3872.6,3871.8,0.1345]
[1761943841706,0.2146,3871.9,3871.6,3.2078]
[1761943841912,0.2146,3871.1,3871.0,0.00189803]
[1761943842105,0.21688485,3871.1,3870.0,0.1345]
[1761943842299,3.2078,3870.9,3870.0,0.1345]
[1761943842511,3.2078,3870.9,3870.2,0.46533]
[1761943842899,3.2078,3870.9,3870.0,0.1345]
[1761943843204,3.2078,3870.9,3870.3,0.46532]
[1761943843409,3.2078,3870.9,3870.4,0.4653]
[1761943843709,3.2078,3870.9,3869.4,0.1345]
[1761943843710,0.0683,3870.0,3867.6,0.1345]
[1761943843905,3.2078,3869.1,3867.7,3.21248943]
[1761943844106,3.2078,3868.6,3867.7,3.67812943]
[1761943844306,3.2078,3868.6,3867.8,3.21248943]
[1761943844613,3.2078,3868.6,3868.5,3.44598943]
[1761943845202,3.2078,3869.1,3868.8,0.4655]
[1761943845408,3.2078,3869.1,3869.0,0.2335]
[1761943845613,3.2078,3869.1,3869.0,3.44598943]
[1761943848014,3.2078,3869.1,3869.0,3.21248943]
[1761943848409,3.2078,3869.1,3868.3,40.8]
[1761943848615,3.2078,3868.6,3868.5,0.2335]
[1761943849117,3.2078,3868.6,3868.5,3.44598943]
[1761943851017,3.2078,3868.6,3868.5,3.21248943]
[1761943852616,3.2078,3868.6,3868.5,3.44598943]
[1761943853123,3.2078,3869.0,3868.5,3.91151943]
[1761943853323,3.2078,3869.0,3868.6,3.67801943]
[1761943853618,3.2078,3869.0,3862.8,2.29804912]
[1761943853619,0.3392,3868.8,3867.9,0.46561]
[1761943853821,3.2078,3868.1,3867.9,3.21248943]
[1761943854014,3.20999108,3868.1,3868.0,3.21248943]
[1761943854211,0.2146,3867.9,3867.8,0.00242788]
[1761943856422,3.20999108,3868.1,3867.9,0.46561]
[1761943856622,3.20999108,3868.1,3868.0,3.44598943]
[1761943856920,3.2078,3869.2,3868.6,0.2335]
[1761943857123,3.2078,3869.2,3868.4,3.2078]
[1761943857321,3.2078,3869.2,3868.7,0.46551]
[1761943857515,3.2078,3869.2,3868.8,0.4655]
[1761943858116,3.21079486,3869.2,3868.8,0.4655]
[1761943858317,3.21079486,3869.2,3868.8,0.6]
[1761943858524,3.21079486,3869.2,3868.4,3.2078]
[1761943858725,3.21079486,3869.2,3868.5,3.21248943]
[1761943858914,3.21079486,3869.2,3868.3,3.67805943]
[1761943859114,3.21079486,3869.2,3868.4,3.21248943]
[1761943859325,3.21079486,3869.2,3868.3,0.46557]
[1761943859626,3.21079486,3869.2,3868.4,3.21248943]
[1761943859828,3.21079486,3869.2,3868.4,3.67803943]
[1761943860119,3.2078,3868.8,3868.2,0.1345]
[1761943860320,3.2078,3868.8,3867.8,0.46804788]
[1761943860321,3.2078,3868.4,3867.8,0.46804788]
[1761943860527,3.2078,3868.4,3867.9,3.21248943]
[1761943860926,3.2078,3868.8,3868.7,0.2335]
[1761943861326,3.4224,3868.8,3868.2,0.1345]
[1761943861633,3.4224,3868.8,3867.5,0.46565]
[1761943861634,0.2146,3867.9,3867.5,0.46565]
[1761943861827,0.2146,3867.9,3867.4,3.67346]
[1761943862125,0.2146,3867.9,3867.5,0.46566]
[1761943862331,0.2146,3867.9,3867.6,0.46565]
[1761943862827,3.2078,3868.4,3867.6,0.1345]
[1761943863225,3.2078,3868.4,3868.0,0.4656]
[1761943863425,3.2078,3868.4,3867.6,0.1345]
[1761943863818,3.2078,3868.4,3868.2,0.46558]
[1761943864018,3.3452,3868.8,3868.3,0.46556]
[1761943864726,3.3452,3868.8,3867.9,3.2078]
[1761943864727,3.2078,3868.8,3868.7,0.2335]
[1761943865226,0.2146,3867.9,3867.8,0.00242788]
[1761943865418,3.4224,3867.9,3867.8,0.00242788]
[1761943865730,11.4224,3867.9,3867.8,0.00242788]
[1761943865927,11.50328305,3867.9,3866.4,0.1345]
[1761943866232,3.2078,3867.5,3867.0,0.1345]
[1761943866432,3.2078,3868.0,3867.0,0.1345]
[1761943866729,3.2078,3867.6,3867.1,3.21248943]
[1761943866930,3.2078,3867.6,3867.0,0.1345]
[1761943867128,3.2078,3867.6,3867.3,0.46568]
[1761943867336,0.0808727,3867.5,3867.1,3.67818943]
[1761943867522,0.0808727,3867.4,3867.2,3.67817943]
[1761943867726,3.2078,3867.6,3867.2,0.46569]
[1761943868030,0.08087261,3867.5,3867.3,3.21248943]
[1761943868228,0.1374,3868.2,3867.3,0.2335]
[1761943868229,0.08087261,3867.4,3867.3,0.2335]
[1761943868532,3.2078,3868.0,3867.4,3.21248943]
[1761943868728,3.2078,3868.0,3867.6,0.46565]
[1761943868929,0.08086843,3867.9,3867.4,0.46567]
[1761943869231,8.5471768,3868.8,3867.0,0.0018278]
[1761943869232,0.2146,3867.1,3867.0,0.0018278]
[1761943869432,0.1374,3867.0,3866.3,0.4658]
[1761943869730,0.08086843,3866.9,3866.4,0.46579]
[1761943870034,0.08086843,3866.8,3866.4,0.46579]
[1761943870228,0.08086843,3866.7,3866.5,3.21248943]
[1761943870420,0.08086843,3866.6,3866.5,0.23682388]
[1761943870626,4.7289768,3867.6,3866.6,3.21248943]
[1761943870829,0.65709961,3867.5,3867.0,0.59711]
[1761943871028,0.65709961,3867.4,3867.1,3.21248943]
[1761943871332,0.65709961,3867.3,3867.1,3.67819943]
[1761943871533,0.65709961,3867.2,3867.1,0.68311]
[1761943871736,0.0808852,3867.2,3867.1,0.68311]
[1761943871930,0.0808852,3867.2,3867.1,3.89559943]
[1761943873230,0.6589716,3867.2,3867.1,3.42988943]
[1761943873622,0.6589716,3867.2,3867.1,3.21248943]
[1761943874228,0.8885716,3867.2,3867.1,3.21248943]
[1761943874431,0.8885716,3867.2,3866.6,3.2078]
[1761943874631,0.2296,3866.6,3866.5,0.00332388]
[1761943874830,0.2296,3866.6,3865.4,3.2078]
[1761943874831,0.2296,3865.5,3865.4,3.2078]
[1761943875037,0.3104852,3865.5,3865.2,0.46594]
[1761943875332,0.0808852,3865.4,3865.3,3.21248943]
[1761943875532,0.0808852,3865.4,3865.1,3.21248943]
[1761943875729,0.0808852,3865.3,3865.1,3.21248943]
[1761943875935,0.23239231,3865.3,3865.2,3.21248943]
[1761943876238,1.82233107,3866.6,3865.2,3.21248943]
[1761943876239,3.2078,3866.3,3865.8,0.59726]
[1761943876435,3.2078,3866.3,3865.4,3.2078]
[1761943876827,3.2078,3866.3,3865.6,0.46588]
[1761943877034,3.2078,3866.3,3865.8,0.46586]
[1761943877233,2.71108412,3866.3,3865.6,3.21248943]
[1761943877431,2.71108412,3866.3,3865.5,3.21248943]
[1761943877625,2.71108412,3866.3,3865.6,3.21248943]
[1761943878133,2.71108412,3866.3,3865.7,3.21248943]
[1761943878435,2.71108412,3866.3,3865.4,3.2078]
[1761943878436,0.1336,3865.8,3865.1,0.00205154]
[1761943878627,0.1336,3865.8,3865.2,3.21248943]
[1761943878934,0.1336,3865.8,3865.1,0.00205154]
[1761943878935,0.2339,3865.2,3865.1,0.00205154]
[1761943879234,3.2078,3865.5,3865.2,3.34318943]
[1761943879431,3.2078,3865.9,3865.4,3.21248943]
[1761943879626,3.2078,3865.9,3865.3,3.21248943]
[1761943879826,3.2078,3865.9,3865.6,0.46589]
[1761943880027,3.2078,3865.9,3865.4,3.21248943]
[1761943880227,3.2078,3865.9,3865.3,3.21248943]
[1761943880636,0.2339,3865.2,3865.1,0.00205154]
[1761943882343,0.3675,3865.2,3865.1,0.00205154]
[1761943882942,0.2339,3865.2,3865.1,0.00205154]
[1761943883427,3.2078,3865.5,3865.4,0.2155]
[1761943883831,1.38296475,3866.3,3865.4,0.2155]
[1761943883832,3.2078,3865.9,3865.4,3.42798943]
[1761943884139,3.2078,3865.9,3865.5,3.21248943]
[1761943884341,3.2078,3865.9,3865.4,0.46591]
[1761943884641,3.2078,3865.9,3865.5,0.4659]
[1761943884834,3.2078,3865.9,3865.5,3.21248943]
[1761943885028,3.2078,3865.9,3865.2,0.1307]
[1761943885029,3.2078,3865.9,3865.6,3.21248943]
[1761943885237,3.2078,3865.9,3865.5,0.4659]
[1761943885537,3.2078,3865.9,3865.1,0.00205154]
[1761943885538,0.1336,3865.8,3865.1,0.00205154]
[1761943885734,0.1336,3865.8,3865.2,3.67842943]
[1761943885936,3.2078,3865.9,3865.4,0.46591]
[1761943886336,3.2078,3865.9,3865.5,3.21248943]
[1761943886738,3.2078,3865.9,3865.6,3.21248943]
[1761943887239,3.2078,3865.9,3865.2,0.1307]
[1761943887240,3.2078,3865.9,3865.4,0.46591]
[1761943887736,0.00328412,3866.3,3865.2,0.1307]
[1761943887737,0.0722,3865.8,3865.2,0.1307]
[1761943887933,3.2078,3866.0,3865.4,0.46591]
[1761943888137,0.08090938,3865.9,3865.4,0.46591]
[1761943888440,0.65252842,3865.8,3865.5,3.21248943]
[1761943888630,0.65252842,3865.7,3865.5,3.21248943]
[1761943888830,3.2078,3866.0,3865.6,3.21248943]
[1761943889040,0.65252788,3865.9,3865.6,3.21248943]
[1761943889242,0.65252788,3865.8,3865.5,0.4659]
[1761943889428,0.65252788,3865.7,3865.6,3.21248943]
[1761943889635,0.88642788,3865.7,3865.3,3.21248943]
[1761943889837,3.2078,3866.0,3865.3,3.21248943]
[1761943889838,0.65252788,3865.6,3865.3,3.21248943]
[1761943890033,0.2339,3865.4,3865.1,0.00205154]
[1761943890239,0.31480888,3865.3,3865.2,3.21248943]
[1761943890743,0.31480888,3865.3,3865.1,0.00205154]
[1761943890944,0.2339,3865.3,3865.2,3.21248943]
[1761943891240,0.31481672,3865.3,3865.2,3.21248943]
[1761943891445,0.31481672,3865.3,3865.1,0.00205154]
[1761943891647,0.2339,3865.3,3865.2,3.21248943]
[1761943891840,0.31481691,3865.3,3865.2,3.21248943]
[1761943892037,0.31481691,3865.3,3865.1,0.00205154]
[1761943892234,0.2339,3865.3,3865.2,3.21248943]
[1761943892434,0.3148186,3865.3,3865.1,3.21454097]
[1761943892639,0.0809186,3865.2,3865.1,3.21454097]
[1761943893646,0.0809186,3865.2,3865.1,3.89599097]
[1761943896344,0.0809186,3865.2,3865.1,3.21454097]
[1761943896544,0.3148186,3865.2,3865.1,3.21454097]
[1761943896846,0.88726218,3865.2,3865.1,3.21454097]
[1761943897244,0.3148186,3865.2,3865.1,3.21454097]
[1761943897635,0.0809186,3865.2,3865.1,3.43004097]
[1761943897835,3.2078,3865.8,3865.7,0.2155]
[1761943898038,3.86118672,3865.8,3865.7,0.2155]
[1761943898440,3.86118672,3865.8,3865.5,0.4659]
[1761943898744,0.65338672,3865.7,3865.5,0.4659]
[1761943898944,0.08091223,3865.6,3865.5,0.4659]
[1761943899134,0.08091223,3865.6,3865.5,0.6814]
[1761943899347,3.2078,3866.2,3865.7,0.46587]
[1761943899544,0.65383752,3866.1,3866.0,0.2155]
[1761943899750,0.0809082,3866.1,3866.0,0.2155]
[1761943900042,0.0809082,3866.1,3866.0,3.42798943]
[1761943901251,3.2078,3866.2,3866.0,3.42798943]
[1761943901442,3.2078,3866.2,3866.1,0.226]
[1761943901642,3.28870223,3866.2,3866.1,0.226]
[1761943901850,3.28870223,3866.2,3866.1,3.43848943]
[1761943902242,0.65471413,3866.2,3866.1,3.43848943]
[1761943903153,0.65531553,3866.2,3866.1,3.43848943]
[1761943904347,4.08181553,3866.2,3865.4,0.4659]
[1761943904547,0.65531553,3866.1,3865.4,0.4659]
[1761943904752,0.65531553,3866.0,3865.6,0.46589]
[1761943904947,0.5744133,3865.9,3865.7,3.21248943]
[1761943905154,3.2078,3866.2,3865.7,3.21248943]
[1761943905450,0.65582459,3866.1,3865.8,3.21248943]
[1761943905650,0.65582459,3866.0,3865.6,0.46589]
[1761943905847,3.2078,3866.2,3865.6,3.67837943]
[1761943906052,0.65576532,3866.1,3866.0,0.3561]
[1761943906552,0.65576532,3866.1,3866.0,3.56858943]
[1761943907057,0.65576532,3866.1,3866.0,4.03442943]
[1761943908158,0.5748618,3866.1,3866.0,4.03442943]
[1761943908552,0.00328412,3866.3,3866.2,0.69182]
[1761943908748,0.65912489,3866.3,3866.2,3.90430943]
[1761943909256,0.00328412,3866.3,3866.2,3.90430943]
[1761943913958,3.2078,3867.4,3867.1,0.226]
[1761943914162,3.2078,3867.4,3867.3,0.226]
[1761943914361,3.86318517,3867.4,3867.3,0.23068943]
[1761943914560,3.86318365,3867.4,3867.3,0.23068943]
[1761943914964,3.86636815,3867.4,3867.3,0.23068943]
[1761943915665,0.57768278,3867.4,3867.3,0.23068943]
[1761943916064,9.431,3868.2,3867.3,0.23068943]
[1761943916065,1.59838063,3868.4,3868.0,0.1301]
[1761943916257,0.2187,3868.4,3868.0,0.1301]
[1761943916968,3.2078,3868.6,3868.3,0.226]
[1761943917264,3.2078,3868.6,3868.5,0.3561]
[1761943917265,3.21103058,3868.6,3868.5,0.3561]
[1761943918966,3.21103058,3868.6,3868.3,0.00301626]
[1761943918967,0.2187,3868.4,3868.3,0.00301626]